Workbook

Sheet Table S2A
A1: Table S2A. Global gene expression profiling comparing control LACZ cells and SNAI2 overexpressing
A2: cells cultured in growth medium
A4: LZRS-LACZ GM=control LACZ expressing cells cultured in growth medium
A5: LZRS-SNAI2 GM= SNAI2 overexpressing cells cultured in growth medium
A6: All values are shown in Log2 scale except for the last column which is shown as a fold change
A7: between LACZ and SNAI2 samples(SNAI2/LACZ).
A8: Each sample was performed in biological duplicates. The average value for each sample is shown in
A9: Log2 scale.
A10: Significant changes between LACZ and SNAI2 cells were identified by Significance Analysis of
A11: Microarrays with a FDR of less than or equal to 5% and an average fold change of greater than or
A12: equal to 2 (which is a change of equal to or greater than 1 in log2 scale).
A15: Gene Symbol | B15: LZRS-LACZ GM AVG | C15: LZRS-SNAI2 GM AVG | D15: SNAI2-LACZ | E15: Fold Change (SNAI2/LACZ)
A16: LRRC17 | B16: 3.754666265 | C16: 9.786353865 | D16: =(C16-B16) -> 6.0316876 | E16: =(2^D16) -> 65.42125814
A17: COL3A1 | B17: 3.70342095 | C17: 9.491906745 | D17: 5.788485796 | E17: 55.27234035
A18: POSTN | B18: 5.932077978 | C18: 11.49392035 | D18: 5.561842371 | E18: 47.23689958
A19: IL33 | B19: 4.973439476 | C19: 10.40388992 | D19: 5.430450442 | E19: 43.12493695
A20: CNIH3 | B20: 4.394105818 | C20: 9.736977156 | D20: 5.342871338 | E20: 40.58490517
A21: PTX3 | B21: 4.153860006 | C21: 9.115856252 | D21: 4.961996247 | E21: 31.16805551
A22: SERPINB4 | B22: 3.127264672 | C22: 7.915993054 | D22: 4.788728381 | E22: 27.64081753
A23: HHIP | B23: 3.944087744 | C23: 8.724885637 | D23: 4.780797893 | E23: 27.48929293
A24: COL1A2 | B24: 4.536004765 | C24: 9.257213984 | D24: 4.721209219 | E24: 26.37701163
A25: COL1A1 | B25: 5.664364914 | C25: 10.29239455 | D25: 4.628029633 | E25: 24.72724549
A26: FABP4 | B26: 4.652839837 | C26: 9.175022702 | D26: 4.522182865 | E26: 22.9780245
A27: MRGPRX3 | B27: 6.927083058 | C27: 11.43259924 | D27: 4.505516181 | E27: 22.71409911
A28: CXCL6 | B28: 4.550064606 | C28: 8.758943441 | D28: 4.208878835 | E28: 18.49263413
A29: TMEM132B | B29: 4.193057108 | C29: 8.237875743 | D29: 4.044818635 | E29: 16.50485587
A30: LOX | B30: 4.335312193 | C30: 8.29306965 | D30: 3.957757457 | E30: 15.53830744
A31: CXCL5 | B31: 6.412889754 | C31: 10.35213209 | D31: 3.939242331 | E31: 15.34016751
A32: ZP4 | B32: 5.603030385 | C32: 9.492856173 | D32: 3.889825788 | E32: 14.82361886
A33: ADAMTS12 | B33: 5.034107375 | C33: 8.771119391 | D33: 3.737012016 | E33: 13.33376237
A34: KCNMA1 | B34: 4.620905115 | C34: 8.355440693 | D34: 3.734535578 | E34: 13.31089412
A35: NAP1L3 | B35: 4.336330296 | C35: 8.068725952 | D35: 3.732395655 | E35: 13.29116495
A36: NID1 | B36: 4.518529198 | C36: 8.227789826 | D36: 3.709260628 | E36: 13.07972794
A37: GREM1 | B37: 3.477118482 | C37: 7.118105506 | D37: 3.640987024 | E37: 12.47516528
A38: SCN2A | B38: 3.281474167 | C38: 6.905284168 | D38: 3.623810001 | E38: 12.32751413
A39: LOC646576 | B39: 5.86928533 | C39: 9.452333542 | D39: 3.583048212 | E39: 11.98408795
A40: SRGN | B40: 4.452773966 | C40: 8.019260421 | D40: 3.566486455 | E40: 11.84730044
A41: SHISA2 | B41: 3.724799312 | C41: 7.243179785 | D41: 3.518380473 | E41: 11.45877148
A42: CTHRC1 | B42: 3.541412764 | C42: 7.05199323 | D42: 3.510580465 | E42: 11.3969862
A43: CRIP1 | B43: 5.70027801 | C43: 9.147144011 | D43: 3.446866 | E43: 10.90460798
A44: LOC100132891 | B44: 4.138385546 | C44: 7.558358211 | D44: 3.419972665 | E44: 10.70321764
A45: ABI3BP | B45: 4.284060199 | C45: 7.684059917 | D45: 3.399999717 | E45: 10.55606122
A46: JAM3 | B46: 6.432266347 | C46: 9.828687803 | D46: 3.396421455 | E46: 10.52991186
A47: ST8SIA1 | B47: 3.464296873 | C47: 6.84827972 | D47: 3.383982847 | E47: 10.43951546
A48: ASAM | B48: 5.489015387 | C48: 8.844763937 | D48: 3.35574855 | E48: 10.2371949
A49: MME | B49: 6.014953225 | C49: 9.332812134 | D49: 3.317858909 | E49: 9.971834291
A50: SPON2 | B50: 6.04531988 | C50: 9.299488165 | D50: 3.254168285 | E50: 9.541183854
A51: ARHGAP24 | B51: 5.719804932 | C51: 8.971737943 | D51: 3.251933011 | E51: 9.526412439
A52: CLDN11 | B52: 6.220242467 | C52: 9.437622067 | D52: 3.2173796 | E52: 9.300959793
A53: TNIP3 | B53: 3.767002236 | C53: 6.978266379 | D53: 3.211264143 | E53: 9.261617291
A54: NES | B54: 5.247304855 | C54: 8.441313612 | D54: 3.194008757 | E54: 9.151503334
A55: COL11A1 | B55: 5.548414946 | C55: 8.740513358 | D55: 3.192098412 | E55: 9.139393391
A56: UNC5A | B56: 4.766457287 | C56: 7.912205919 | D56: 3.145748632 | E56: 8.850436633
A57: FBN1 | B57: 5.800460778 | C57: 8.939048104 | D57: 3.138587326 | E57: 8.806613349
A58: IL13RA2 | B58: 8.066229122 | C58: 11.19932938 | D58: 3.133100259 | E58: 8.773182376
A59: AK5 | B59: 4.539978706 | C59: 7.67290425 | D59: 3.132925544 | E59: 8.772119978
A60: SEMA6D | B60: 4.519481706 | C60: 7.599373209 | D60: 3.079891503 | E60: 8.455508409
A61: STON1 | B61: 4.870957957 | C61: 7.949798801 | D61: 3.078840844 | E61: 8.44935283
A62: LOXL2 | B62: 7.422932663 | C62: 10.48472645 | D62: 3.06179379 | E62: 8.350101822
A63: IL8 | B63: 7.558557646 | C63: 10.61632585 | D63: 3.057768208 | E63: 8.326834833
A64: PTPN22 | B64: 4.197545741 | C64: 7.233852088 | D64: 3.036306347 | E64: 8.203879759
A65: COL5A1 | B65: 5.070711392 | C65: 8.098777012 | D65: 3.02806562 | E65: 8.157152478
A66: TNS1 | B66: 4.047376111 | C66: 7.060357148 | D66: 3.012981037 | E66: 8.072306965
A67: ANPEP | B67: 9.314504649 | C67: 12.32163872 | D67: 3.007134069 | E67: 8.039657652
A68: GPC6 | B68: 5.495646126 | C68: 8.483066583 | D68: 2.987420456 | E68: 7.930547433
A69: FAM101A | B69: 5.533168094 | C69: 8.520251029 | D69: 2.987082935 | E69: 7.928692282
A70: HS3ST3A1 | B70: 5.263091357 | C70: 8.229179464 | D70: 2.966088107 | E70: 7.814145435
A71: ZEB1 | B71: 4.767940937 | C71: 7.721702607 | D71: 2.953761671 | E71: 7.747665515
A72: PLAC8 | B72: 5.373961634 | C72: 8.296329342 | D72: 2.922367708 | E72: 7.580892503
A73: CSPG4 | B73: 4.857092843 | C73: 7.778862841 | D73: 2.921769998 | E73: 7.577752382
A74: RGS17 | B74: 4.748751661 | C74: 7.662507545 | D74: 2.913755884 | E74: 7.535774969
A75: COL6A1 | B75: 7.065716129 | C75: 9.912355304 | D75: 2.846639175 | E75: 7.19322721
A76: SCN4B | B76: 5.62075538 | C76: 8.462576924 | D76: 2.841821544 | E76: 7.169246731
A77: GNG11 | B77: 7.509985318 | C77: 10.34028228 | D77: 2.830296957 | E77: 7.112205238
A78: COL5A2 | B78: 8.68228276 | C78: 11.50523285 | D78: 2.822950085 | E78: 7.076078659
A79: PCOLCE2 | B79: 6.116117762 | C79: 8.92201532 | D79: 2.805897558 | E79: 6.992932398
A80: SYT11 | B80: 3.994413312 | C80: 6.781298992 | D80: =(C80-B80) -> 2.786885679 | E80: =(2^D80) -> 6.901383862
A81: C12orf39 | B81: 5.320895479 | C81: 8.107695901 | D81: 2.786800422 | E81: 6.900976029
A82: EFEMP2 | B82: 7.02736743 | C82: 9.785502654 | D82: 2.758135224 | E82: 6.765212374
A83: NNMT | B83: 4.328830985 | C83: 7.026393767 | D83: 2.697562783 | E83: 6.487051007
A84: IL7R | B84: 6.811103121 | C84: 9.507574153 | D84: 2.696471032 | E84: 6.482143828
A85: RHOU | B85: 4.909778893 | C85: 7.602413245 | D85: 2.692634352 | E85: 6.464928223
A86: HAS2 | B86: 7.807211032 | C86: 10.47171808 | D86: 2.664507047 | E86: 6.340106377
A87: DCN | B87: 6.400757783 | C87: 9.056657969 | D87: 2.655900186 | E87: 6.302395035
A88: GLT8D2 | B88: 6.590765162 | C88: 9.221123807 | D88: 2.630358645 | E88: 6.191799023
A89: UCP2 | B89: 5.378773089 | C89: 8.007332481 | D89: 2.628559392 | E89: 6.184081754
A90: ACVRL1 | B90: 4.886092097 | C90: 7.498100307 | D90: 2.612008209 | E90: 6.113540871
A91: SLITRK5 | B91: 4.844576664 | C91: 7.45624115 | D91: 2.611664485 | E91: 6.112084485
A92: TFPI | B92: 4.85211658 | C92: 7.460771074 | D92: 2.608654495 | E92: 6.099345729
A93: IL31RA | B93: 7.196226841 | C93: 9.789376427 | D93: 2.593149586 | E93: 6.034145925
A94: FKBP7 | B94: 5.314575801 | C94: 7.904544793 | D94: 2.589968992 | E94: 6.02085758
A95: CCL2 | B95: 4.280811339 | C95: 6.854920522 | D95: 2.574109183 | E95: 5.955031678
A96: SERPINB3 | B96: 5.24941193 | C96: 7.819304222 | D96: 2.569892293 | E96: 5.937650978
A97: TNFSF15 | B97: 5.810226484 | C97: 8.36780185 | D97: 2.557575366 | E97: 5.8871744
A98: GNG2 | B98: 6.97936918 | C98: 9.534793066 | D98: 2.555423886 | E98: 5.878401443
A99: C1S | B99: 6.229330001 | C99: 8.78264812 | D99: 2.553318119 | E99: 5.869827549
A100: DPP4 | B100: 5.240926316 | C100: 7.788878866 | D100: 2.547952551 | E100: 5.848037452
A101: RAB39B | B101: 4.395404654 | C101: 6.924510814 | D101: 2.52910616 | E101: 5.77213947
A102: LTB | B102: 6.250115458 | C102: 8.776337044 | D102: 2.526221586 | E102: 5.76060999
A103: ICAM1 | B103: 6.503800789 | C103: 9.026135154 | D103: 2.522334365 | E103: 5.745109401
A104: ESM1 | B104: 6.845910908 | C104: 9.362418106 | D104: 2.516507198 | E104: 5.721951217
A105: C13orf15 | B105: 4.688815817 | C105: 7.201630248 | D105: 2.512814432 | E105: 5.707323865
A106: C5orf13 | B106: 5.330349054 | C106: 7.821482805 | D106: 2.491133751 | E106: 5.622196007
A107: STC1 | B107: 5.070564206 | C107: 7.550573843 | D107: 2.480009636 | E107: 5.57901193
A108: MGAM | B108: 4.393258135 | C108: 6.858981596 | D108: 2.465723461 | E108: 5.52403883
A109: SMCP | B109: 4.65538696 | C109: 7.10966595 | D109: 2.45427899 | E109: 5.480391621
A110: CORO2B | B110: 5.184045146 | C110: 7.611899007 | D110: 2.427853861 | E110: 5.38092374
A111: PVRL3 | B111: 6.458257261 | C111: 8.885569351 | D111: 2.427312089 | E111: 5.378903436
A112: MMP2 | B112: 9.071711595 | C112: 11.49555485 | D112: 2.423843251 | E112: 5.365985852
A113: PMP22 | B113: 6.281498694 | C113: 8.705216012 | D113: 2.423717318 | E113: 5.365517476
A114: LOC645638 | B114: 5.735932006 | C114: 8.137724868 | D114: 2.401792862 | E114: 5.284594821
A115: MYL9 | B115: 5.464284911 | C115: 7.845830538 | D115: 2.381545627 | E115: 5.210947165
A116: SORT1 | B116: 5.860405205 | C116: 8.241922851 | D116: 2.381517646 | E116: 5.2108461
A117: THY1 | B117: 6.666532613 | C117: 9.035746026 | D117: 2.369213412 | E117: 5.166593619
A118: PPP1R3C | B118: 7.287029459 | C118: 9.642216598 | D118: 2.355187139 | E118: 5.116605981
A119: CHN1 | B119: 6.196408241 | C119: 8.550426569 | D119: 2.354018328 | E119: 5.1124624
A120: DTNA | B120: 5.028939119 | C120: 7.376900745 | D120: 2.347961626 | E120: 5.091044325
A121: VEPH1 | B121: 4.725955268 | C121: 7.05835919 | D121: 2.332403922 | E121: 5.036438585
A122: CLEC2B | B122: 6.457979635 | C122: 8.76224373 | D122: 2.304264095 | E122: 4.93915449
A123: OLFML3 | B123: 6.811672981 | C123: 9.108121114 | D123: 2.296448133 | E123: 4.91246842
A124: LAYN | B124: 5.914308315 | C124: 8.198061455 | D124: 2.28375314 | E124: 4.869430793
A125: DSEL | B125: 6.043182263 | C125: 8.302061494 | D125: 2.258879231 | E125: 4.786195181
A126: P4HA3 | B126: 5.300140678 | C126: 7.557683894 | D126: 2.257543216 | E126: 4.781764951
A127: NEFM | B127: 5.394528565 | C127: 7.627730801 | D127: 2.233202236 | E127: 4.701764357
A128: RGS4 | B128: 5.163326514 | C128: 7.395456133 | D128: 2.232129619 | E128: 4.698269982
A129: CCBE1 | B129: 6.484534416 | C129: 8.69403998 | D129: 2.209505564 | E129: 4.62516734
A130: EFS | B130: 6.078832646 | C130: 8.286183111 | D130: 2.207350465 | E130: 4.618263419
A131: MEF2C | B131: 5.165945767 | C131: 7.368914525 | D131: 2.202968758 | E131: 4.604258256
A132: CXCL3 | B132: 9.111562301 | C132: 11.31442377 | D132: 2.202861472 | E132: 4.603915874
A133: FIBIN | B133: 4.549083549 | C133: 6.746687811 | D133: 2.197604263 | E133: 4.587169644
A134: NACAD | B134: 6.671642682 | C134: 8.862978817 | D134: 2.191336134 | E134: 4.567282838
A135: TAGLN | B135: 7.224679279 | C135: 9.414235538 | D135: 2.189556259 | E135: 4.561651585
A136: LOC100127983 | B136: 5.905601095 | C136: 8.034855045 | D136: 2.12925395 | E136: 4.374911855
A137: AEBP1 | B137: 6.462080322 | C137: 8.590300374 | D137: 2.128220052 | E137: 4.371777726
A138: CHSY3 | B138: 5.310630392 | C138: 7.431281353 | D138: 2.120650961 | E138: 4.348901283
A139: BGN | B139: 5.117841381 | C139: 7.236573514 | D139: 2.118732134 | E139: 4.343120959
A140: HNMT | B140: 5.494802548 | C140: 7.610061115 | D140: 2.115258567 | E140: 4.332676635
A141: FAM43A | B141: 5.656487979 | C141: 7.745192971 | D141: 2.088704992 | E141: 4.253660797
A142: CTSK | B142: 8.325991559 | C142: 10.41450487 | D142: 2.088513308 | E142: 4.253095673
A143: TCEAL7 | B143: 6.377342205 | C143: 8.460676149 | D143: 2.083333944 | E143: 4.23785417
A144: ENG | B144: 6.920235096 | C144: 8.995278892 | D144: =(C144-B144) -> 2.075043796 | E144: =(2^D144) -> 4.213572053
A145: POLM | B145: 7.358869794 | C145: 9.425810563 | D145: 2.066940769 | E145: 4.189972481
A146: SLC22A4 | B146: 6.384058971 | C146: 8.445835764 | D146: 2.061776794 | E146: 4.175001725
A147: CYS1 | B147: 4.985970822 | C147: 7.038966226 | D147: 2.052995404 | E147: 4.149666527
A148: SPP1 | B148: 5.397031388 | C148: 7.436480217 | D148: 2.039448829 | E148: 4.110884474
A149: VCAN | B149: 6.093345917 | C149: 8.1317935 | D149: 2.038447583 | E149: 4.108032465
A150: MAN1A1 | B150: 8.350610604 | C150: 10.38748846 | D150: 2.036877859 | E150: 4.103565151
A151: TGFB1I1 | B151: 9.039837435 | C151: 11.0689623 | D151: 2.029124866 | E151: 4.081571885
A152: FLJ10357 | B152: 7.430088644 | C152: 9.452201649 | D152: 2.022113005 | E152: 4.061782547
A153: IGFBP4 | B153: 5.594283121 | C153: 7.613079727 | D153: 2.018796607 | E153: 4.052456239
A154: SULT1E1 | B154: 6.088339148 | C154: 8.081975173 | D154: 1.993636025 | E154: 3.982394174
A155: PLOD2 | B155: 10.53402811 | C155: 12.52492733 | D155: 1.990899223 | E155: 3.974846708
A156: MEG3 | B156: 6.150755078 | C156: 8.121560105 | D156: 1.970805027 | E156: 3.919867875
A157: PRKCA | B157: 6.404816642 | C157: 8.364309838 | D157: 1.959493196 | E157: 3.889253294
A158: CXCL11 | B158: 6.120901831 | C158: 8.079119865 | D158: 1.958218034 | E158: 3.8858172
A159: FAM176B | B159: 7.491778405 | C159: 9.445726937 | D159: 1.953948531 | E159: 3.874334537
A160: C7orf58 | B160: 4.962648346 | C160: 6.91523226 | D160: 1.952583914 | E160: 3.87067161
A161: TRO | B161: 5.389902395 | C161: 7.340361078 | D161: 1.950458684 | E161: 3.864973932
A162: CCL20 | B162: 8.585921878 | C162: 10.53135142 | D162: 1.945429542 | E162: 3.851524337
A163: BMP2 | B163: 9.012166958 | C163: 10.95425176 | D163: 1.942084802 | E163: 3.842605319
A164: PLEKHO1 | B164: 6.719598078 | C164: 8.651629127 | D164: 1.932031049 | E164: 3.815920325
A165: SDC2 | B165: 4.873402488 | C165: 6.797748244 | D165: 1.924345756 | E165: 3.795646815
A166: FSD1 | B166: 6.90193367 | C166: 8.820309268 | D166: 1.918375599 | E166: 3.779972134
A167: C1R | B167: 7.226923019 | C167: 9.139285215 | D167: 1.912362197 | E167: 3.764249348
A168: NR5A2 | B168: 5.132146705 | C168: 7.038979003 | D168: 1.906832299 | E168: 3.749848472
A169: FOXF2 | B169: 5.796541007 | C169: 7.703273922 | D169: 1.906732915 | E169: 3.749590163
A170: CXCL2 | B170: 8.435572972 | C170: 10.34118833 | D170: 1.905615362 | E170: 3.746686749
A171: TGM2 | B171: 6.474755086 | C171: 8.379503104 | D171: 1.904748019 | E171: 3.74443493
A172: COL8A1 | B172: 4.864579412 | C172: 6.763992631 | D172: 1.899413219 | E172: 3.730614322
A173: CENPV | B173: 5.930831278 | C173: 7.828761104 | D173: 1.897929826 | E173: 3.726780438
A174: FAM198B | B174: 5.745599746 | C174: 7.642726216 | D174: 1.89712647 | E174: 3.72470578
A175: SALL2 | B175: 6.412021614 | C175: 8.307165772 | D175: 1.895144158 | E175: 3.719591425
A176: PBX1 | B176: 6.314563806 | C176: 8.20706147 | D176: 1.892497665 | E176: 3.712774425
A177: PAPSS2 | B177: 7.584178862 | C177: 9.475296792 | D177: 1.89111793 | E177: 3.709225376
A178: MRAS | B178: 6.882105038 | C178: 8.772819957 | D178: 1.890714919 | E178: 3.708189364
A179: SUSD3 | B179: 5.000382515 | C179: 6.890919205 | D179: 1.89053669 | E179: 3.707731286
A180: CHST2 | B180: 8.297810288 | C180: 10.18529114 | D180: 1.887480855 | E180: 3.699886091
A181: CD1D | B181: 6.851521292 | C181: 8.738878631 | D181: 1.887357339 | E181: 3.69956934
A182: SDK2 | B182: 8.050757294 | C182: 9.929424082 | D182: 1.878666788 | E182: 3.677350747
A183: PDE2A | B183: 5.430388814 | C183: 7.306810562 | D183: 1.876421747 | E183: 3.671632712
A184: MOXD1 | B184: 5.599538833 | C184: 7.473052014 | D184: 1.873513181 | E184: 3.664237919
A185: ECM1 | B185: 8.013787927 | C185: 9.882325989 | D185: 1.868538062 | E185: 3.651623596
A186: BCHE | B186: 7.432575124 | C186: 9.299969461 | D186: 1.867394337 | E186: 3.648729845
A187: TMEM200B | B187: 7.483965427 | C187: 9.324765253 | D187: 1.840799827 | E187: 3.582085633
A188: MAMDC2 | B188: 8.684763199 | C188: 10.51322616 | D188: 1.82846296 | E188: 3.551584868
A189: NAP1L2 | B189: 7.281943201 | C189: 9.096953717 | D189: 1.815010516 | E189: 3.51862195
A190: ANXA6 | B190: 9.567862536 | C190: 11.37879353 | D190: 1.81093099 | E190: 3.508686356
A191: TWIST1 | B191: 5.443801463 | C191: 7.254502945 | D191: 1.810701482 | E191: 3.508128229
A192: DZIP1 | B192: 6.252613774 | C192: 8.061268016 | D192: 1.808654241 | E192: 3.503153588
A193: GPX7 | B193: 5.228909296 | C193: 7.031803696 | D193: 1.8028944 | E193: 3.489195417
A194: GALM | B194: 5.764816603 | C194: 7.556406841 | D194: 1.791590238 | E194: 3.461962838
A195: SPOCK1 | B195: 7.205175962 | C195: 8.994760314 | D195: 1.789584352 | E195: 3.457152758
A196: 2013-09-11 | B196: 5.604216284 | C196: 7.390767938 | D196: 1.786551653 | E196: 3.449893088
A197: CSF2 | B197: 8.587057542 | C197: 10.37256345 | D197: 1.785505904 | E197: 3.447393309
A198: CREB3L1 | B198: 5.820231913 | C198: 7.593156607 | D198: 1.772924693 | E198: 3.417460572
A199: FIBCD1 | B199: 5.729064401 | C199: 7.49910121 | D199: 1.770036809 | E199: 3.410626585
A200: EMILIN2 | B200: 5.405564345 | C200: 7.173245746 | D200: 1.767681401 | E200: 3.405062787
A201: RBP1 | B201: 9.455230902 | C201: 11.21440826 | D201: 1.759177357 | E201: 3.385050499
A202: FOXC2 | B202: 4.936600919 | C202: 6.692304338 | D202: 1.755703418 | E202: 3.376909271
A203: C12orf68 | B203: 5.137841438 | C203: 6.890087384 | D203: 1.752245946 | E203: 3.368826072
... 790 more rows

Sheet Table S2B
A1: Table S2B. Overlap between the differentiation and LZRS-SNAI2 gene
A2: expression signature
A4: 3304 genes change upon calcium induced epidermal differentiation (CTL DM)
A5: 978 genes change upon SNAI2 overexpression in cells cultured in growth
A6: medium (LZRS-SNAI2 GM)
A8: PTX3
A9: SERPINB4
A10: COL1A1
A11: MRGPRX3
A12: CXCL5
A13: ZP4
A14: NID1
A15: ABI3BP
A16: MME
A17: FBN1
A18: IL13RA2
A19: LOXL2
A20: IL8
A21: ANPEP
A22: GNG11
A23: COL5A2
A24: C12orf39
A25: IL7R
A26: RHOU
A27: HAS2
A28: SERPINB3
A29: GNG2
A30: PVRL3
A31: MMP2
A32: LOC645638
A33: MYL9
A34: SORT1
A35: CLEC2B
A36: OLFML3
A37: LAYN
A38: FIBIN
A39: TAGLN
A40: FAM43A
A41: CTSK
A42: TCEAL7
A43: SPP1
A44: VCAN
A45: MAN1A1
A46: TGFB1I1
A47: FLJ10357
A48: SULT1E1
A49: PLOD2
A50: PRKCA
A51: CCL20
A52: BMP2
A53: PLEKHO1
A54: SDC2
A55: TGM2
A56: CENPV
A57: PAPSS2
A58: MOXD1
A59: BCHE
A60: TMEM200B
A61: MAMDC2
A62: NAP1L2
A63: ANXA6
A64: DZIP1
A65: MCAM
A66: LOC338758
A67: MDK
A68: FBLN1
A69: APOE
A70: MXRA5
A71: VEGFC
A72: CPE
A73: VIM
A74: ITGA4
A75: FAM171B
A76: ATP2B1
A77: TNS3
A78: PCDH7
A79: DPYD
A80: EMP3
A81: CTSS
A82: GALNT10
A83: LPHN2
A84: MAP1B
A85: SERP2
A86: CDH11
A87: CLEC11A
A88: PRICKLE2
A89: IGFBP6
A90: RGMB
A91: LHFP
A92: EDNRA
A93: SPARC
A94: SLC8A1
A95: PLAGL1
A96: C3
A97: KDELC2
A98: DDAH1
A99: PEG10
A100: PTPRG
A101: TMEM204
A102: FBXL7
A103: FAM46A
A104: DAB2
A105: LYPD6
A106: EFNB3
A107: HS3ST3B1
A108: SYT7
A109: NRCAM
A110: DPYSL3
A111: LEPRE1
A112: LOC399959
A113: LOC375190
A114: GLDC
A115: CDKN1C
A116: EHD3
A117: LPXN
A118: FUT8
A119: NEXN
A120: GDF11
A121: CERCAM
A122: C6orf225
A123: KLF2
A124: C20orf112
A125: CCPG1
A126: QPCT
A127: KDELC1
A128: PROS1
A129: GHR
A130: SOX11
A131: AOX1
A132: LEF1
A133: SERPINH1
A134: TCF4
A135: PDLIM7
A136: ROBO4
A137: SYNE1
A138: DLC1
A139: SSBP2
A140: EXTL2
A141: KCTD14
A142: LEPREL1
A143: SYTL2
A144: ST5
A145: NUCB2
A146: RBMS3
A147: MAP1LC3A
A148: SGCE
A149: LXN
A150: MARCKS
A151: C8orf34
A152: THBS3
A153: GALNT5
A154: FLRT2
A155: POU2F2
A156: PDLIM4
A157: HOXB7
A158: AXL
A159: CNPY4
A160: PIGK
A161: PHTF1
A162: KIRREL
A163: SPOCD1
A164: RHOBTB1
A165: FZD2
A166: TUBA1A
A167: TMEFF1
A168: C9orf150
A169: C11orf61
A170: ACO1
A171: USP11
A172: CALHM2
A173: CD99L2
A174: FAM102B
A175: PDE4D
A176: HSD17B11
A177: TRPS1
A178: LIX1L
A179: IFI44L
A180: DOCK1
A181: TCF7L1
A182: LIF
A183: F2R
A184: BTN3A2
A185: DOCK11
A186: TMSB15B
A187: MGC16121
A188: MAML2
A189: CCDC50
A190: DPYSL2
A191: HMOX1
A192: KYNU
A193: S1PR1
A194: PDE4DIP
A195: PLCD1
A196: PHACTR2
A197: CLIC3
A198: SPRR3
A199: WEE1
A200: PTPLB
A201: GAS5
A202: RDH13
... 254 more rows

Sheet Table S2C
A1: Table S2C. Overlap between the SNAI2i and LZRS-SNAI2 gene expression signature
A3: 801 genes change upon SNAI2 knockdown in cells cultured in growth medium (SNAI2i GM)
A4: 978 genes change upon SNAI2 overexpression in cells cultured in growth
A5: medium (LZRS-SNAI2 GM)
A7: KRTDAP
A8: SERPINB3
A9: SBSN
A10: LCE3D
A11: PI3
A12: CRCT1
A13: S100P
A14: CLIC3
A15: KLK11
A16: SPINK5
A17: FAM83C
A18: GRHL3
A19: KLK7
A20: NIPAL4
A21: SERPINB13
A22: CALML5
A23: KRT16
A24: SCEL
A25: A2ML1
A26: SLPI
A27: GPR109B
A28: KLK10
A29: GLDC
A30: KLK6
A31: EMR2
A32: MAL2
A33: PPL
A34: CWH43
A35: SORT1
A36: MYO5B
A37: EPCAM
A38: SVIP
A39: TMEM125
A40: SPRR1A
A41: CLDN4
A42: RNASE7
A43: DSC2
A44: ZNF185
A45: ABLIM1
A46: CA2
A47: CLDN1
A48: HOOK1
A49: HMOX1
A50: SDCBP2
A51: THBD
A52: KLK5
A53: KLF4
A54: E2F8
A55: GAS2L3
A56: PRRG4
A57: GJB6
A58: KLK8
A59: TXNIP
A60: PROM2
A61: ARRDC4
A62: CLDN7
A63: SPRR1B
A64: MFSD6
A65: ZNF165
A66: RAB11FIP1
A67: FUT3
A68: C10orf116
A69: SPRR3
A70: GPRC5A
A71: CTSL2
A72: ABCG1
A73: COL1A1
A74: AQP3
A75: CXCR7
A76: PTGES
A77: WEE1
A78: DDAH1
A79: PKP1
A80: PARD6B
A81: TBC1D8
A82: LASS3
A83: RAPGEF5
A84: ERBB3
A85: C9orf150
A86: LPHN2
A87: LOC151438
A88: CYP1A1
A89: CDK5R1
A90: ARHGEF4
A91: FGFR3
A92: HK2
A93: AP1S3
A94: LMNB1
A95: PNLIPRP3
A96: GEM
A97: EIF4E3
A98: SFRP1
A99: IL1R2
A100: CLIP1
A101: LCN2
A102: AIM1L
A103: HSPC159
A104: MACC1
A105: EFS
A106: MCM10
A107: IL6R
A108: KIAA1147
A109: FZD10
A110: FAM110C
A111: PCGF5
A112: ENTPD3
A113: OVOL2
A114: ARAP2
A115: RBM47
A116: MEG3
A117: RAB25
A118: PPP1R14C
A119: CIDEA
A120: NBEAL2
A121: GCH1
A122: FZD5
A123: RRM2
A124: ECM1
A125: SERPINB1
A126: ELOVL7
A127: MAPK13
A128: RHPN2
A129: COL18A1
A130: CELSR2
A131: HAS3
A132: MAP2
A133: CCDC109B
A134: C6orf132
A135: PLD6
A136: BMP6
A137: GPSM2
A138: MKI67
A139: SYNE2
A140: EPPK1
A141: FAM108C1
A142: MIF4GD
A143: GRTP1
A144: ATP8B1
A145: CTSD
A146: ARG2
A147: CDT1
A148: FAM83D
A149: LAMP3
A150: SSBP2
A151: TRIM29
A152: SYK
A153: STRBP
A154: SNX5
A155: ESRP2
A156: ACSL1
A157: PRSS3
A158: ESRP1
A159: ADAM8
A160: SLAMF7
A161: IL1RN
A162: PAK6
A163: GPR157
A164: CLCA2
A165: POU2F2
A166: ITGB6
A167: LHFP
A168: LEPRE1
A169: LEPREL1
A170: IL8
A171: THBS2
A172: CCDC88A
A173: HMGB3
A174: THBS1
A175: SGCE
A176: C21orf7
A177: C12orf57
A178: CD99L2
A179: ITM2C
A180: IL13RA2
A181: VEGFC
A182: TMSB15B
A183: AOX1
A184: MMP14
A185: KDELR3
A186: SNX10
A187: C16orf45
A188: CXCL1
A189: DNAJB4
A190: FLRT2
A191: P4HA2
A192: PDLIM4
A193: CHST2
A194: GPR68
A195: LOC554202
A196: FILIP1L
A197: CDK14
A198: FADS3
A199: DIXDC1
A200: MGC16121
A201: APOBEC3G
A202: SELM
... 52 more rows
